{"text_format":"1","workbook":"xlsx","n_sheets":1,"sheets":["Dati x impresa"],"not_rendered":{"charts":0,"images":0,"macros":1,"external_links":0,"defined_names":1,"comments":1,"pivot_tables":0},"unopened":[],"bounds":{"document_bytes":16777216,"sheet_cells":100000,"rows_first":2000,"rows_last":500,"rows_between":2000,"halvings":0,"cell_chars":16384,"cell_head_chars":4096},"cells_cut":0,"cells_raw":0,"read":"whole","date_system":"1900"}

{"sheet":"Dati x impresa","index":0,"n_rows":153,"n_cols":11,"rows_kept":153,"cut":false,"hidden":false,"merged":[[145,6,145,10],[1,2,1,10],[149,0,149,7],[150,0,150,7],[152,0,152,7],[148,0,148,7],[147,0,147,7],[142,6,142,10],[2,0,2,1],[2,2,2,5],[2,6,2,9],[3,1,4,1],[3,0,4,0],[151,0,151,7]]}
[]
[null,null,"Tavola 1 - Reclami inviati dai consumatori alle imprese nel periodo: anno 2024"]
["Click sul pulsante in testa a ciascuna colonna per ordinare i dati in base ai corrispondenti valori.                  \nClick su \"Reset\" per tornare all'ordine alfabetico",null,"Numero reclami",null,null,null," Numero reclami per milione di premi (2) ",null,null,null,"Numero reclami/\n10.000 contratti\n(Tot.Vita e Danni)"]
["Tipologia imprese:\n- Italiane\n- Estere (1)","Denominazione impresa"]
[null,null,"Totale vita e danni","Rami Vita","Rami Danni \n(escl rc auto)","Rc auto",{"$f":"\"Totale vita e danni\" & CHAR(10) &\n\"Media:\" & CHAR(10) &\n\" It: \" &  ROUND(G144,2) & CHAR(10) &\n\" E: \" & ROUND(G145,2)","v":"Totale vita e danni\nMedia:\n It: 1,52\n E: 5,61"},{"$f":"\"Rami Vita\" & CHAR(10) & CHAR(10) &\n\"Media:\" & CHAR(10) &\n\" It: \" & ROUND(H144,2) & CHAR(10) &\n\" E: \" & ROUND(H145,2)","v":"Rami Vita\n\nMedia:\n It: 0,17\n E: 2,25"},{"$f":"\"Rami Danni\" & CHAR(10) &\n\"(escl rc auto)\" & CHAR(10) &\n\"Media:\" & CHAR(10) &\n\" It: \" &  ROUND(I144,2) & CHAR(10) &\n\" E: \" & ROUND(I145,2)","v":"Rami Danni\n(escl rc auto)\nMedia:\n It: 1,52\n E: 5,01"},{"$f":"\"Rc auto\" & CHAR(10) & CHAR(10) &\n\"Media:\" & CHAR(10) &\n\" It: \" & ROUND(J144,2) & CHAR(10) &\n\" E: \" & ROUND(J145,2)","v":"Rc auto\n\nMedia:\n It: 4,41\n E: 7,81"},{"$f":"\"Totale vita e danni\" & CHAR(10) &\n\"Media:\" & CHAR(10) &\n\" It: \" &  ROUND(K144,2) & CHAR(10) &\n\" E: \" & ROUND(K145,2)","v":"Totale vita e danni\nMedia:\n It: 5,2\n E: 7,48"}]
["Impresa vigilata","ALLEANZA ASSICURAZIONI S.P.A.",1306,1167,139,0,0.15,0.14000000000000001,0.63,null,3.77]
["Impresa vigilata","ALLIANZ DIRECT SOCIETA PER AZIONI",3085,0,784,2301,6.19,null,5.77,6.35,24.1]
["Impresa vigilata","ALLIANZ NEXT S.P.A. (già Allianz Viva S.P.A..)",1623,0,617,1006,2.08,null,1.33,3.19,8.2799999999999994]
["Impresa vigilata","ALLIANZ SOCIETA' PER AZIONI",5644,222,2348,3074,0.75,7.0000000000000007E-2,0.93,1.8,3.92]
["Impresa vigilata","AMTRUST ASSICURAZIONI S.P.A.",94,0,94,0,0.33,null,0.33,null,3.88]
["Impresa vigilata","ARCA ASSICURAZIONI S.P.A.",781,0,590,191,2.5,null,2.19,4.46,6.86]
["Impresa vigilata","ARCA VITA S.P.A.",139,139,0,0,0.05,0.05,null,null,2.2999999999999998]
["Impresa vigilata","ARGOGLOBAL ASSICURAZIONI S.P.A.",4,0,4,0,null,null,null,null,9.7799999999999994]
["Impresa vigilata","ASSICURATRICE MILANESE SPA - COMPAGNIA DI ASSICURAZIONI",152,0,78,74,2.0499999999999998,null,1.29,5.35,2.88]
["Impresa vigilata","ASSICURAZIONI GENERALI SOCIETA' PER AZIONI",9,0,9,0,0,0,0.01,0,1.66]
["Impresa vigilata","ASSICURAZIONI RISCHI AGRICOLI VMG 1857 S.P.A.",0,0,0,0,0,null,0,null,0]
["Impresa vigilata","ASSIMOCO S.P.A. COMPAGNIA DI ASSICURAZIONI E RIASSICURAZIONI - MOVIMENTO COOPERATIVO",362,null,231,131,0.95,null,0.88,1.1100000000000001,2.73]
["Impresa vigilata","ASSIMOCO VITA S.P.A. COMPAGNIA DI ASSICURAZIONE SULLA VITA",21,21,null,null,0.02,0.02,null,null,0.42]
["Impresa vigilata","ATHORA ITALIA S.P.A.",84,84,0,0,0.25,0.25,null,null,5.24]
["Impresa vigilata","AXA ASSICURAZIONI S.P.A.",3300,99,899,2302,1.07,0.15,0.56000000000000005,2.83,5.35]
["Impresa vigilata","AXA MPS ASSICURAZIONI DANNI SOCIETA' PER AZIONI",357,0,234,123,2.17,null,1.75,4.0599999999999996,1.75]
["Impresa vigilata","AXA MPS ASSICURAZIONI VITA SOCIETA' PER AZIONI",229,229,0,0,0.14000000000000001,0.14000000000000001,null,null,2.13]
["Impresa vigilata","BANCO BPM ASSICURAZIONI S.P.A",64,0,59,5,1.9,null,1.75,null,2.87]
["Impresa vigilata","BANCO BPM VITA S.P.A",90,79,11,0,7.0000000000000007E-2,0.06,3.11,null,3.42]
["Impresa vigilata","BCC ASSICURAZIONI S.P.A.",82,null,65,17,0.89,null,0.76,2.5499999999999998,2.46]
["Impresa vigilata","BCC VITA S.P.A. COMPAGNIA DI ASSICURAZIONI VITA",56,56,0,0,0.05,0.05,null,null,2.02]
["Impresa vigilata","BENE ASSICURAZIONI S.P.A. SOCIETA BENEFIT",366,0,65,301,1.26,null,0.49,1.91,3.25]
["Impresa vigilata","BERKSHIRE HATHAWAY INTERNATIONAL INSURANCE LIMITED",17,0,17,0,0.38,null,0.38,null,10.56]
["Impresa vigilata","BIM VITA S.P.A.",1,1,0,0,0.05,0.05,null,null,2.3199999999999998]
["Impresa vigilata","BNP PARIBAS CARDIF VITA COMPAGNIA DI ASSICURAZIONE E RIASSICURAZIONE S.P.A.",464,447,17,0,0.13,0.13,"NA (4)",null,7.1]
["Impresa vigilata","CF ASSICURAZIONI S.P.A. - COMPAGNIA DI ASSICURAZIONE PER IL CREDITO E LA FAMIGLIA",15,0,15,0,0.42,null,0.42,null,0.66]
["Impresa vigilata","CF LIFE COMPAGNIA DI ASSICURAZIONI VITA S.P.A.",11,11,0,0,0.36,0.36,null,null,1.01]
["Impresa vigilata","CNP UNICREDIT VITA S.P.A.",563,563,0,0,0.16,0.16,null,null,6.39]
["Impresa vigilata","CNP VITA ASSICURA S.P.A.",201,201,0,0,0.06,0.06,null,null,1.25]
["Impresa vigilata","COMPAGNIA ASSICURATRICE LINEAR S.P.A.",1694,0,38,1656,6.74,null,0.65,8.59,24.1]
["Impresa vigilata","COMPAGNIA ITALIANA DI PREVIDENZA, ASSICURAZIONI E RIASSICURAZIONI S.P.A.",1676,562,440,674,0.87,0.56999999999999995,0.77,1.89,6.98]
["Impresa vigilata","CREDEMASSICURAZIONI S.P.A.",163,0,163,0,2.66,null,2.66,null,5.22]
["Impresa vigilata","CREDEMVITA S.P.A.",51,51,0,0,0.02,0.02,null,null,2.19]
["Impresa vigilata","CREDIT AGRICOLE ASSICURAZIONI S.P.A.",882,null,619,263,5.54,null,4.5599999999999996,11.23,11.27]
["Impresa vigilata","CREDIT AGRICOLE VITA S.P.A.",34,34,null,null,0.01,0.01,null,null,0.69]
["Impresa vigilata","CRONOS VITA ASSICURAZIONI S.P.A.",660,660,0,0,"NA  (5)","NA  (5)",null,null,"NA  (5)"]
["Impresa vigilata","D.A.S. DIFESA AUTOMOBILISTICA SINISTRI - S.P.A. DI ASSICURAZIONE",48,0,48,0,0.77,null,0.77,null,1.38]
["Impresa vigilata","EUROP ASSISTANCE ITALIA S.P.A.",1428,0,1428,0,4.49,null,4.49,null,2.52]
["Impresa vigilata","FIDEURAM VITA S.P.A.",266,266,0,0,0.06,0.06,null,null,5.6]
["Impresa vigilata","GENERALI ITALIA S.P.A.",9703,1105,4323,4275,0.53,0.11,0.74,2.11,4.34]
["Impresa vigilata","GENERTEL S.P.A.",6259,142,1195,4922,10.8,1.69,4.66,20.57,27.96]
["Impresa vigilata","GENERTELLIFE S.P.A.",151,151,0,0,0.03,0.03,null,null,5.14]
["Impresa vigilata","GLOBAL ASSISTANCE COMPAGNIA DI ASSICURAZIONI E RIASSICURAZIONI S.P.A.",96,0,96,0,2.66,null,2.66,null,2.04]
["Impresa vigilata","GROUPAMA ASSICURAZIONI SOCIETA' PER AZIONI",1644,23,507,1114,1.26,0.09,0.84,2.5099999999999998,7.02]
["Impresa vigilata","HDI ASSICURAZIONI S.P.A.",1246,78,442,726,0.68,7.0000000000000007E-2,1.23,1.78,5.63]
["Impresa vigilata","HELVETIA COMPAGNIA SVIZZERA D'ASSICURAZIONI S.A.",520,null,226,294,1.0900000000000001,null,0.64,2.3199999999999998,6.2]
["Impresa vigilata","HELVETIA ITALIA ASSICURAZIONI S.P.A.",133,null,79,54,1.25,null,0.92,2.6,2.23]
["Impresa vigilata","HELVETIA VITA COMPAGNIA ITALO-SVIZZERA DI ASSICURAZIONI SULLA VITA S.P.A.",46,46,null,null,0.14000000000000001,0.14000000000000001,null,null,2.3199999999999998]
["Impresa vigilata","IMA ITALIA ASSISTANCE S.P.A.",28,0,28,0,1,null,1,null,0.1]
["Impresa vigilata","INTESA SANPAOLO ASSICURAZIONI S.P.A. (già ISP Vita S.P.A.)",1738,1738,0,0,0.13,0.13,0,null,4.28]
["Impresa vigilata","INTESA SANPAOLO PROTEZIONE S.P.A. (già ISP Assicura S.P.A.)",4378,0,4177,201,2.89,null,2.9,2.76,6.65]
["Impresa vigilata","ITAS - ISTITUTO TRENTINO-ALTO ADIGE PER ASSICURAZIONI SOCIETA' MUTUA DI ASSICURAZIONI",958,0,461,497,1.04,null,0.74,1.65,6.2]
["Impresa vigilata","ITAS VITA S.P.A.",95,95,0,0,0.26,0.26,null,null,2.73]
["Impresa vigilata","LE ASSICURAZIONI DI ROMA - MUTUA ASSICURATRICE ROMANA",151,0,97,54,2.4500000000000002,null,2.68,2.12,9.5299999999999994]
["Impresa vigilata","MEDIOLANUM ASSICURAZIONI S.P.A.",124,0,124,0,0.93,null,0.93,null,3.14]
["Impresa vigilata","MEDIOLANUM VITA S.P.A",321,321,0,0,0.05,0.05,null,null,3.89]
["Impresa vigilata","NET INSURANCE LIFE S.P.A.",4,4,0,0,0.03,0.03,null,null,0.06]
["Impresa vigilata","NET INSURANCE S.P.A.",115,0,115,0,0.98,null,0.98,null,1.5]
["Impresa vigilata","NOBIS COMPAGNIA DI ASSICURAZIONI S.P.A.",688,0,382,306,1.53,null,1.1399999999999999,2.66,1.97]
["Impresa vigilata","NOBIS VITA S.P.A.",7,7,0,0,0.05,0.05,null,null,3.24]
["Impresa vigilata","POSTE ASSICURA S.P.A.",3897,0,3897,0,7.11,null,7.11,null,5.41]
["Impresa vigilata","POSTE VITA S.P.A.",3943,3943,0,0,0.22,0.22,0,null,5.57]
["Impresa vigilata","QUIXA ASSICURAZIONI S.P.A.",894,0,48,846,8.6199999999999992,null,1.1100000000000001,13.96,17.420000000000002]
["Impresa vigilata","REVO INSURANCE S.P.A.",28,0,28,0,0.09,null,0.09,null,1.45]
["Impresa vigilata","S2C S.P.A. COMPAGNIA DI ASSICURAZIONI DI CREDITI E CAUZIONI",5,null,5,0,0.13,null,0.13,null,3.07]
["Impresa vigilata","SACE BT S.P.A.",14,0,14,0,0.08,null,0.08,null,2.09]
["Impresa vigilata","SARA ASSICURAZIONI S.P.A. ASSICURATRICE UFFICIALE DELL'AUTOMOBILE CLUB D'ITALIA",1175,0,530,645,1.58,null,1.46,1.69,2.61]
["Impresa vigilata","SARA VITA S.P.A.",9,9,0,0,7.0000000000000007E-2,7.0000000000000007E-2,null,null,1.29]
["Impresa vigilata","SCHWEIZERISCHE HAGEL-VERSICHERUNGS-GESELLSHAFT - SOCIETA' SVIZZERA DI",3,0,3,0,0.06,null,0.06,null,7.3]
["Impresa vigilata","SIAT SOCIETA' ITALIANA ASSICURAZIONI E RIASSICURAZIONI PER AZIONI",4,0,4,0,0.03,null,0.03,0,3.35]
["Impresa vigilata","SLP - ASSICURAZIONI SPESE LEGALI PERITALI E RISCHI ACCESSORI S.P.A.",4,0,4,0,2.56,null,2.56,null,1.26]
["Impresa vigilata","SOCIETA' REALE MUTUA DI ASSICURAZIONI",2357,74,1226,1057,0.78,7.0000000000000007E-2,0.85,2.0099999999999998,4.16]
["Impresa vigilata","TUTELA LEGALE S.P.A.",5,0,5,0,0.26,null,0.26,null,0.35]
["Impresa vigilata","UCA - ASSICURAZIONE SPESE LEGALI E PERITALI S.P.A.",16,0,16,0,0.33,null,0.33,null,0.28000000000000003]
["Impresa vigilata","UNICREDIT ALLIANZ ASSICURAZIONI S.P.A.",1279,0,1147,132,3.04,null,2.9,5.33,5.19]
["Impresa vigilata","UNICREDIT ALLIANZ VITA S.P.A.",315,315,0,0,0.06,0.06,null,null,3.11]
["Impresa vigilata","UNIPOL ASSICURAZIONI S.P.A.",15622,509,6638,8475,1.43,0.14000000000000001,1.53,2.86,4.71]
["Impresa vigilata","UNISALUTE S.P.A.",3904,0,3904,0,3.85,null,3.85,null,4.74]
["Impresa vigilata","VERA ASSICURAZIONI S.P.A.",309,0,287,22,2.0299999999999998,null,1.98,2.95,4.2300000000000004]
["Impresa vigilata","VERA PROTEZIONE S.P.A.",98,98,0,0,0.75,0.75,null,null,1.72]
["Impresa vigilata","VERA VITA S.P.A.",123,123,0,0,0.15,0.15,0,null,9.4600000000000009]
["Impresa vigilata","VERTI ASSICURAZIONI S.P.A.",1756,0,252,1504,7.91,null,4.2300000000000004,9.26,24.89]
["Impresa vigilata","VHV ITALIA ASSICURAZIONI S.P.A.",45,0,9,36,0.88,null,0.31,1.68,3.62]
["Impresa vigilata","VITTORIA ASSICURAZIONI S.P.A.",3374,45,1346,1983,1.73,0.13,1.71,2.4300000000000002,6.31]
["Impresa vigilata","ZURICH INSURANCE COMPANY LTD",755,null,215,540,8.3699999999999992,null,3.84,15.79,20.53]
["Impresa vigilata","ZURICH INVESTMENTS LIFE S.P.A.",270,270,null,null,0.19,0.19,null,null,3.1]
["Impresa estera","ADMIRAL EUROPE COMPA?IA DE SEGUROS S.A.",1664,0,229,1435,5.19,null,2.89,5.94,9.17]
["Impresa estera","ADRIATIC OSIGURANJE D.D.",725,0,6,719,7.84,null,1.04,8.2899999999999991,34.74]
["Impresa estera","AIG EUROPE S.A.",273,0,247,26,0.45,null,0.4,"NA (4)",0.45]
["Impresa estera","AIG EUROPE S.A. (LPS)",16,0,16,0,11.56,null,11.56,null,16.07]
["Impresa estera","AIOI NISSAY DOWA INSURANCE COMPANY OF EUROPE SE",250,0,139,111,1.27,null,0.8,4.62,10.4]
["Impresa estera","ALLIANZ GLOBAL LIFE DAC",30,30,0,0,0.14000000000000001,0.14000000000000001,null,null,2.44]
["Impresa estera","AMTRUST INTERNATIONAL UNDERWRITERS DAC",48,0,48,0,2.09,null,2.09,null,8.43]
["Impresa estera","ARAG SE RAPPRESENTANZA GENERALE E DIREZIONE PER L'ITALIA",59,0,59,0,1.3,null,1.3,null,0.94]
["Impresa estera","ASSURANT EUROPE INSURANCE NV",121,0,121,0,3.96,null,3.96,null,0.34]
["Impresa estera","AWP HEALTH & LIFE SA",46,0,46,0,30.1,null,30.1,null,"NA (4) "]
["Impresa estera","AWP P&C S.A.",310,0,310,0,4.42,null,4.42,null,0.94]
["Impresa estera","AWP P&C S.A. (LPS)",39,0,39,0,23,null,23,null,0.71]
["Impresa estera","AXA MPS FINANCIAL DAC",32,32,0,0,0.03,0.03,null,null,1.55]
["Impresa estera","AXERIA IARD S.A.",97,0,97,0,1.08,null,1.08,null,0.64]
["Impresa estera","BUPA GLOBAL DAC",88,0,88,0,23.35,null,23.35,null,"NA (4) "]
["Impresa estera","CACI LIFE DAC",136,136,0,0,0.85,0.85,null,null,3.63]
["Impresa estera","CACI LIFE DAC (LPS)",136,136,0,0,1.65,1.65,null,null,2.78]
["Impresa estera","CACI NON LIFE DAC",42,0,42,0,0.84,null,0.84,null,1.27]
["Impresa estera","CACI NON LIFE DAC (LPS)",103,0,103,0,1.1000000000000001,null,1.1000000000000001,null,2.15]
["Impresa estera","CARDIF ASSURANCE VIE S.A.",312,312,0,0,1.01,1.01,null,null,1.94]
["Impresa estera","CARDIF ASSURANCES RISQUES DIVERS S.A.",654,0,654,0,4.32,null,4.32,null,3.9]
["Impresa estera","CHUBB EUROPEAN GROUP SE",350,0,350,0,1.01,null,1.01,0,0.5]
["Impresa estera","CNP ASSURANCES S.A.",42,14,28,0,0.95,0.42,2.61,null,3.58]
["Impresa estera","COLLINSON INSURANCE EUROPE LTD",233,0,233,0,15.88,null,15.88,null,"NA (4) "]
["Impresa estera","ERGO REISEVERSICHERUNG AG",420,0,420,0,16.600000000000001,null,16.600000000000001,null,2.58]
["Impresa estera","EUROHERC OSIGURANJE D.D.",333,0,0,333,12.24,null,null,12.24,"NA(3)"]
["Impresa estera","EUROP ASSISTANCE SA",57,0,57,0,9.77,null,9.77,null,8.57]
["Impresa estera","GAMALIFE COMPANHIA DE SEGUROS DE VIDA, SA",53,53,null,null,0.4,0.4,null,null,7.88]
["Impresa estera","GREAT LAKES INSURANCE SE",2081,0,276,1805,3.3,null,1.35,4.24,7.25]
["Impresa estera","GREENVAL INSURANCE DAC",30,0,4,26,0.64,null,0.49,0.67,0.76]
["Impresa estera","HANSARD EUROPE DAC (run off)",40,40,0,0,"NA (4)","NA (4)",null,null,"NA (4) "]
["Impresa estera","INSURANCE JSC DALLBOGG: LIFE AND HEALTH",1830,0,0,1830,17.88,null,0,19.78,49.68]
["Impresa estera","INTER PARTNER ASSISTANCE SA",135,0,135,0,2.85,null,2.85,null,0.47]
["Impresa estera","IPTIQ EMEA P&C SA",3066,0,451,2615,4.21,null,2.35,4.88,7.87]
["Impresa estera","IPTIQ EMEA P&C SA (LPS)",149,0,6,143,"NA (4)",null,"NA (4)","NA (4)","NA (4) "]
["Impresa estera","LLOYD'S INSURANCE COMPANY SA",192,0,192,0,0.55000000000000004,null,0.55000000000000004,null,5.0999999999999996]
["Impresa estera","MAPFRE ASISTENCIA, COMPA?IA INTERNATIONAL DE SEGUROS Y REASEGUROS, S.A.",26,0,26,0,0.87,null,0.87,null,0.68]
["Impresa estera","MEDIOLANUM INTERNATIONAL LIFE DAC",140,140,0,0,1.46,1.46,null,null,35.36]
["Impresa estera","MEDVIDA PARTNERS DE SEGUROS Y REASEGUROS S.A. (SOCIEDAD UNIPERSONAL)",21,21,0,0,0.31,0.31,0,null,23.38]
["Impresa estera","METLIFE EUROPE DESIGNATED ACTIVITY COMPANY",1096,718,378,0,4.2699999999999996,4.58,3.79,null,8.32]
["Impresa estera","METLIFE EUROPE INSURANCE DESIGNATED ACTIVITY COMPANY",21,null,21,0,1.1100000000000001,null,1.1100000000000001,null,0.62]
["Impresa estera","MMA IARD SA",74,0,74,0,0.37,null,0.37,null,1.53]
["Impresa estera","MONUMENT ASSURANCE LUXEMBOURG S.A.",7,7,0,0,1.31,1.31,null,null,4.37]
["Impresa estera","NOVIS INSURANCE COMPANY, NOVIS VERSICHERUNGSGESELLSCHAFT, NOVIS COMPAGNIA DI ASSICURAZIONI, NOVIS POIST'OVNA A.S.",253,253,0,0,14.78,14.78,null,null,"NA(3)"]
["Impresa estera","RELYENS MUTUAL INSURANCE",38,0,38,0,0.27,null,0.27,null,"NA (4) "]
["Impresa estera","SOGESSUR S.A.",1328,0,97,1231,15.49,null,2.93,23.38,17.71]
["Impresa estera","WAKAM",209,0,197,12,5.26,null,4.96,null,4.66]
["Impresa estera","WEFOX INSURANCE AG",149,0,8,141,"NA (4)",null,"NA (4)",null,"NA (4) "]
["Impresa estera","ZURICH INSURANCE EUROPE AG",1352,null,453,899,0.8,null,0.38,1.84,5.79]
[]
[]
[null,null,"Totale vita e danni","Rami Vita","Rami Danni \n(escl rc auto)","Rc auto","Valori medi"]
[null,"Totale Imprese Italiane ",{"$f":"IFERROR(SUMIF(A6:A140, \"Impresa vigilata\", C6:C140), 0)","v":94631},{"$f":"IFERROR(SUMIF(A6:A140, \"Impresa vigilata\", D6:D140), 0)","v":13988},{"$f":"IFERROR(SUMIF(A6:A140, \"Impresa vigilata\", E6:E140), 0)","v":40842},{"$f":"IFERROR(SUMIF(A6:A140, \"Impresa vigilata\", F6:F140), 0)","v":39801},{"$f":"IFERROR(AVERAGEIF(A6:A140, \"Impresa vigilata\", G6:G140), 0)","v":1.5200000000000007},{"$f":"IFERROR(AVERAGEIF(A6:A140, \"Impresa vigilata\", H6:H140), 0)","v":0.17384615384615384},{"$f":"IFERROR(AVERAGEIF(A6:A140, \"Impresa vigilata\", I6:I140), 0)","v":1.523934426229508},{"$f":"IFERROR(AVERAGEIF(A6:A140, \"Impresa vigilata\", J6:J140), 0)","v":4.410285714285715},{"$f":"IFERROR(AVERAGEIF(A6:A140, \"Impresa vigilata\", K6:K140), 0)","v":5.1964705882352948}]
[null,"Totale Imprese Estere (UE) ",{"$f":"IFERROR(SUMIF(A6:A140, \"Impresa estera\", C6:C140), 0)","v":18906},{"$f":"IFERROR(SUMIF(A6:A140, \"Impresa estera\", D6:D140), 0)","v":1892},{"$f":"IFERROR(SUMIF(A6:A140, \"Impresa estera\", E6:E140), 0)","v":5688},{"$f":"IFERROR(SUMIF(A6:A140, \"Impresa estera\", F6:F140), 0)","v":11326},{"$f":"IFERROR(AVERAGEIF(A6:A140, \"Impresa estera\", G6:G140), 0)","v":5.6115217391304375},{"$f":"IFERROR(AVERAGEIF(A6:A140, \"Impresa estera\", H6:H140), 0)","v":2.2449999999999997},{"$f":"IFERROR(AVERAGEIF(A6:A140, \"Impresa estera\", I6:I140), 0)","v":5.0108333333333341},{"$f":"IFERROR(AVERAGEIF(A6:A140, \"Impresa estera\", J6:J140), 0)","v":7.8072727272727285},{"$f":"IFERROR(AVERAGEIF(A6:A140, \"Impresa estera\", K6:K140), 0)","v":7.4787499999999998}]
[null,"Totale complessivo",{"$f":"C144+C145","v":113537},{"$f":"D144+D145","v":15880},46530,51127]
[]
["(1) - Imprese con sede legale in un Paese UE, operanti in Italia in regime di stabilimento o di libera prestazione dei servizi (ossia senza una sede stabile in Italia). Sono tenute alla comunicazione le sole imprese che ricevono nell'anno più di 20 reclami. "]
["(2) - Fonte premi: segnalazioni Solvency II/PTRIM, per le imprese in LPS sono quelli riportati nel documento tecnico all. 2 Reg. 24/2008. \n"]
["(3) - NA: Outlier non inserito nella media - per visualizzare il valore fare click sulla cella."]
["(4) - NA: dato non inserito nella media in quanto non significativo rispetto al valore dell'indicatore/condizionato da operazioni societarie infrannuali/run off nel comparto."]
["(5) - NA: l'impresa, costituita e autorizzata a fine 2023 al solo fine di gestire il compendio Eurovita (ora in LCA), in primis il portafoglio dei contratti già facenti capo alla stessa."]
["Fonte: elaborazione prospetti informatici inviati dalle imprese all'IVASS ai sensi del Regolamento n. 24/2008 - Segnalazioni Infostat al 6 maggio 2025."]